Cogmind - Beta 12 @@@ ROGUE MODE // 2024.01.03 @ 17:55:03 Player: Kasaris Result: Destroyed by S-27 Virus with Autogun Performance ------------- Evolutions (3) 1500 Regions Visited (5) 1000 Robots Destroyed (48) 240 Value Destroyed (2052) 2052 Prototype IDs (5) 100 Alien Tech Used (0) 0 Bonus (29) 29 TOTAL SCORE: 4921 Bonus ------- High Alert Combat Kills 29 Cogmind --------- Core Integrity 0/700 Matter 290/300 Energy 84/100 System Corruption 4% Temperature Cool (0) Movement Rolling (100) Location -7/Factory Parts ------- > --- POWER (1) -------- (None) > --- PROPULSION (3) --- Compact Wheel > --- UTILITY (5) ------ (None) > --- WEAPON (4) ------- (None) > --- INVENTORY (5) ---- Light Nuclear Core Improved Deuterium Engine Improved Sensor Array Gatling Laser Peak State ------------ > --- POWER ------------ Improved Deuterium Engine > --- PROPULSION ------- Aluminum Leg Carbon-fiber Leg Titanium Leg > --- UTILITY ---------- Cooling System Medium Storage Unit Advanced Visual Processing Unit Improved Signal Interpreter Weapon Cycler > --- WEAPON ----------- Shock Rifle Precision Shock Rifle Gauss Rifle Gauss Cannon > --- INVENTORY -------- Light Nuclear Core Light Nuclear Core VSS Leg Compact Wheel Compact Wheel Improved Heat Sink Small Storage Unit Gatling Laser Grenade Launcher [Rating: 42] Favorites ----------- Power Improved Deuterium Engine Engine Improved Deuterium Engine Power Core Light Nuclear Core Propulsion Compact Wheel Leg Aluminum Leg Wheel Compact Wheel Hover Unit Improved Airjet Utility Cooling System Device Cooling System Storage Medium Storage Unit Processor Terrain Scan Processor Hackware System Shield Weapon Gauss Cannon Energy Gun Precision Shock Rifle Ballistic Gun Gauss Rifle Ballistic Cannon Gauss Cannon Launcher Grenade Launcher Build | -11 -10 -9 -9 -8 -7 ------- Run | Jun Mat Mat Min Mat Fac Slots Evolved 6 | . . 2 . 2 2 Power . | . . . . . . Propulsion 1 | . . . . 1 . Utility 3 | . . 2 . . 1 Weapon 2 | . . . . 1 1 Parts Attached 70 | 6 8 3 1 20 32 Power 10 | 1 2 . . 3 4 Engine 7 | 1 2 . . 2 2 Core 3 | . . . . 1 2 Reactor . | . . . . . . Propulsion 23 | 2 1 . . 7 13 Treads . | . . . . . . Leg 14 | . . . . 7 7 Wheel 7 | 2 1 . . . 4 Hover 2 | . . . . . 2 Flight . | . . . . . . Utility 16 | 1 2 2 . 5 6 Device 10 | . 2 1 . 3 4 Storage 2 | 1 . . . 1 . Processor 3 | . . 1 . . 2 Hackware 1 | . . . . 1 . Protection . | . . . . . . Artifact . | . . . . . . Weapon 21 | 2 3 1 1 5 9 Energy Gun 13 | 2 3 1 . 2 5 Energy Cannon . | . . . . . . Ballistic Gun 4 | . . . . 3 1 Ballistic Cannon 2 | . . . . . 2 Launcher 2 | . . . 1 . 1 Special Weapon . | . . . . . . Impact Weapon . | . . . . . . Slashing Weapon . | . . . . . . Piercing Weapon . | . . . . . . Special Melee Weapon . | . . . . . . Unidentified Prototypes 3 | . . 1 . . 2 Parts Lost 23 | . 4 . . 4 15 Power 4 | . 1 . . 1 2 Propulsion 9 | . 1 . . 2 6 Utility 3 | . 1 . . . 2 Weapon 7 | . 1 . . 1 5 Highest Loss Streak 9 | . 3 . . 2 9 To Critical Strikes . | . . . . . . Average Slot Usage (%) 87 | . 91 99 100 95 81 Engine 6 | . 13 11 11 5 4 Core 1 | . . . . 3 1 Leg 9 | . . . . 19 11 Wheel 10 | . 23 22 22 4 7 Device 13 | . 11 22 22 9 13 Storage 8 | . 14 11 11 9 5 Processor 7 | . . 10 11 9 9 Hackware 1 | . . . . 8 1 Energy Gun 15 | . 28 22 11 12 13 Ballistic Gun 5 | . . . . 13 5 Ballistic Cannon 2 | . . . . . 4 Naked Turns 260 | . . . . . 260 Heaviest Build 42 | 13 14 16 17 26 42 Greatest Support 48 | 26 26 26 26 35 48 Greatest Overweight (x) 3 | . . . . 1 3 Average Overweight (x) . | . . . . . . Largest Inventory Capacity 10 | 8 8 8 8 10 10 Average Capacity 8 | 6 8 8 8 9 9 Most Carried 10 | 4 8 8 8 10 10 Average Carried 8 | 1 6 7 7 9 8 Final Capacity 10 | 8 8 8 8 10 5 Final Carried 10 | 4 8 8 8 10 4 Class Distribution -------------------- 37% | Mutant 34% | Gunner 12% | Skirmisher 10% | Scavenger-Skirmisher 4% | Scavenger-Gunner Dominant Class ---------------- Mutant | -10/Materials Mutant | -9/Materials Mutant | -9/Mines Scavenger-Gunner | -8/Materials Gunner | -7/Factory Resources | -11 -10 -9 -9 -8 -7 ----------- Run | Jun Mat Mat Min Mat Fac Matter Collected 1436 | 211 119 36 10 280 780 Remotely . | . . . . . . Salvage Created 2076 | . 216 137 . 489 1234 Parts 114 | . 11 11 . 26 66 Haulers Intercepted . | . . . . . . Recyclers Shooed . | . . . . . . Parts Field Recycled . | . . . . . . Retrieved Matter . | . . . . . . Parts Self-Destructed . | . . . . . . Prevented . | . . . . . . Kills | -11 -10 -9 -9 -8 -7 ------- Run | Jun Mat Mat Min Mat Fac Combat Hostiles Destroyed 45 | . 6 3 . 10 26 Guns 32 | . 6 3 . 8 15 Cannons 9 | . . . . . 9 AOE 2 | . . . . . 2 Classes Destroyed 10 | . 3 . . 2 5 Worker 1 | . 1 . . . . Builder 1 | . . . . . 1 Watcher 1 | . . . . . 1 Swarmer 7 | . 3 . . . 4 Grunt 23 | . 3 3 . 5 12 Duelist 1 | . . . . . 1 Sentry 6 | . . . . 3 3 Specialist 3 | . . . . . 3 Hunter 2 | . . . . 2 . Programmer 3 | . . . . . 3 Best Kill Streak 5 | . 3 2 . 3 5 Combat Bots Only 4 | . 3 2 . 3 4 Max Kills in Single Turn 2 | . 1 1 . 1 2 Gunslinging . | . . . . . . Exploded 1 | . . . . . 1 Melee . | . . . . . . Uniques/NPCs Destroyed . | . . . . . . Combat | -11 -10 -9 -9 -8 -7 -------- Run | Jun Mat Mat Min Mat Fac Damage Taken 4109 | . 339 165 . 1126 2479 Core 1012 | . 41 44 . 216 711 Absorbed by Shields . | . . . . . . Regen/Repaired (Parts) 174 | . . . . . 174 Core Remaining (%) 83 | 100 83 . 89 60 . Volleys Fired 111 | . 26 12 . 28 45 Largest 4 | . 2 2 . 3 4 Hottest 203 | . 80 96 . 116 203 Shots Fired 333 | . 51 24 . 82 176 Gun 293 | . 51 24 . 82 136 Cannon 38 | . . . . . 38 Launcher 2 | . . . . . 2 Special . | . . . . . . Kinetic 126 | . . . . 42 84 Thermal 117 | . 34 12 . 40 31 Explosive 2 | . . . . . 2 Electromagnetic 88 | . 17 12 . . 59 Robot Hit Streak 40 | . 12 7 . 40 15 Robot Miss Streak 3 | . 3 1 . 2 3 Penetration Max 1 | . . . . . 1 Secondary Targets 7 | . 2 . . 4 1 Max Gunslinging Chain 1 | . 1 . . 1 1 Shots Hit Robots 227 | . 31 17 . 68 111 Core Hits 98 | . 12 6 . 23 57 Critical Kills . | . . . . . . Critical Parts Destroyed . | . . . . . . Critical Strikes 11 | . . . . 4 7 Burn 4 | . . . . 4 . Blast 6 | . . . . . 6 Corrupt 1 | . . . . . 1 Melee Attacks . | . . . . . . Impact . | . . . . . . Slashing . | . . . . . . Piercing . | . . . . . . Sneak Attacks . | . . . . . . Combat Hostiles . | . . . . . . Follow-up Attacks . | . . . . . . Damage Inflicted 4389 | . 352 226 . 947 2864 Guns 3232 | . 352 226 . 947 1707 Cannons 665 | . . . . . 665 Explosions 477 | . . . . . 477 Melee . | . . . . . . Ramming 15 | . . . . . 15 Kinetic 1758 | . . . . 414 1344 Thermal 1211 | . 209 80 . 533 389 Explosive 372 | . . . . . 372 Electromagnetic 1033 | . 143 146 . . 744 Impact . | . . . . . . Slashing . | . . . . . . Piercing . | . . . . . . Highest Corruption 4 | . 2 . . . 4 Average Corruption 3 | . 2 . . . 3 Corruption Purged . | . . . . . . Corruption Blocked . | . . . . . . Effects 47 | . 5 . . . 42 Message Errors 8 | . 1 . . . 7 Matter Fused 14 | . 1 . . . 13 Heat Flow Errors 8 | . 1 . . . 7 Energy Discharges 6 | . . . . . 6 Parts Rejected 1 | . . . . . 1 Data Loss (minor) 5 | . 1 . . . 4 Data Loss (major) 2 | . . . . . 2 Misfires 2 | . . . . . 2 Weapon Failures 1 | . 1 . . . . Overload Shots . | . . . . . . Overflow Damage 32 | . . . . . 32 Projectiles 32 | . . . . . 32 Explosions . | . . . . . . Melee . | . . . . . . Knockbacks 8 | . . . . . 8 Impact . | . . . . . . Kinetic 7 | . . . . . 7 Secondary 1 | . . . . . 1 Self-Inflicted Damage 122 | . . . . . 122 Shots 3 | . . . . . 3 Rammed 2 | . . . . . 2 Targets Rammed 3 | . . . . . 3 Kicked 1 | . . . . . 1 Crushed . | . . . . . . Highest Temperature 303 | . 72 7 . 246 303 Average Temperature 102 | . 27 7 . 102 115 Received Heat Transfer 918 | . 84 93 . 342 399 Siege Activations . | . . . . . . Robots Corrupted . | . . . . . . Combat Hostiles . | . . . . . . Parts Fried 3 | . . . . . 3 Impact Corruptions . | . . . . . . Robots Melted 2 | . . . . 2 . Combat Hostiles 2 | . . . . 2 . Parts Melted 4 | . . . . 4 . Heat Transferred 2886 | . 475 174 . 1434 803 Parts Sabotaged . | . . . . . . Parts Stolen . | . . . . . . Parts Stripped . | . . . . . . Power Chain Reactions 1 | . . . . . 1 Missiles Intercepted . | . . . . . . Alert | -11 -10 -9 -9 -8 -7 ------- Run | Jun Mat Mat Min Mat Fac Peak Influence 492 | . 212 121 46 317 492 Initial 53 | . . 7 46 17 53 Average 192 | . 111 48 46 126 255 Maximum Alert Level 2 | . 1 . . 1 2 Low Security (%) 56 | 100 94 100 100 79 33 Level 1 38 | . 5 . . 20 57 Level 2 5 | . . . . . 8 Level 3 . | . . . . . . Level 4 . | . . . . . . Level 5 . | . . . . . . High Security . | . . . . . . Max Security . | . . . . . . Squads Dispatched 12 | . 2 1 . 2 7 Investigation 4 | . 1 1 . 2 . Extermination 3 | . . . . . 3 Reinforcement 5 | . 1 . . . 4 Assault . | . . . . . . Garrison . | . . . . . . Intercept . | . . . . . . Searches Triggered . | . . . . . . Construction Impeded . | . . . . . . Haulers Reinforced . | . . . . . . Active Scanning Responses . | . . . . . . Cargo Convoy Interrupts 1 | . . . . . 1 Stealth | -11 -10 -9 -9 -8 -7 --------- Run | Jun Mat Mat Min Mat Fac Distress Signals 4 | . 1 . . 1 2 Communications Jammed . | . . . . . . Distress Signals . | . . . . . . Times Spotted 94 | . 13 7 . 12 62 Peak Tracking Total 13 | . 3 3 . 4 13 Tactical Retreats 11 | . 3 1 . . 7 Traps | -11 -10 -9 -9 -8 -7 ------- Run | Jun Mat Mat Min Mat Fac Traps Triggered 3 | . 1 . . 1 1 Indirectly . | . . . . . . Trap Hack Attempts . | . . . . . . Triggered . | . . . . . . Disarmed . | . . . . . . Reprogrammed . | . . . . . . Reused . | . . . . . . Traps Extracted . | . . . . . . Installed . | . . . . . . Triggered . | . . . . . . Machines | -11 -10 -9 -9 -8 -7 ---------- Run | Jun Mat Mat Min Mat Fac Machines Disabled 4 | . . . . . 4 Max in Single Turn 1 | . . . . . 1 Machines Repaired . | . . . . . . Machines Sabotaged . | . . . . . . Overloaded Fab Kills . | . . . . . . Hacking | -11 -10 -9 -9 -8 -7 --------- Run | Jun Mat Mat Min Mat Fac Machines Accessed 14 | . 4 2 . 2 6 Terminals 12 | . 4 2 . 2 4 Fabricators . | . . . . . . Repair Stations 2 | . . . . . 2 Recycling Units . | . . . . . . Scanalyzers . | . . . . . . Garrison Access . | . . . . . . Total Hacks 32 | . 8 7 . 6 11 Successful 19 | . 5 4 . 3 7 Failed 13 | . 3 3 . 3 4 Catastrophic 3 | . . 1 . . 2 Database Lockouts . | . . . . . . Manual 16 | . 8 3 . 4 1 Terminals 28 | . 8 7 . 6 7 Fabricators . | . . . . . . Repair Stations 4 | . . . . . 4 Recycling Units . | . . . . . . Scanalyzers . | . . . . . . Garrison Access . | . . . . . . Terminal Hacks 7 | . . 2 . 2 3 Record 1 | . . 1 . . . Robot Analysis 1 | . . . . 1 . Prototype ID Bank 1 | . . . . . 1 Alert Level 1 | . . . . . 1 Zone Layout 3 | . . 1 . 1 1 Fabricator Hacks . | . . . . . . Repair Station Hacks 4 | . . . . . 4 Scan Component 2 | . . . . . 2 Repair 2 | . . . . . 2 Recycling Unit Hacks . | . . . . . . Scanalyzer . | . . . . . . Garrison Access Hacks . | . . . . . . Unauthorized Hacks 8 | . 5 2 . 1 . Terminals 8 | . 5 2 . 1 . Track 1 | . 1 . . . . Assimilate 1 | . . 1 . . . Botnet 5 | . 4 1 . . . Operators 1 | . . . . 1 . Fabricators . | . . . . . . Repair Stations . | . . . . . . Recycling Units . | . . . . . . Scanalyzers . | . . . . . . Garrison Access . | . . . . . . Data Cores Recovered . | . . . . . . Used . | . . . . . . Hacking Detections 8 | . 1 2 . 1 4 Full Trace Events 3 | . 1 1 . 1 . Feedback Events . | . . . . . . Feedback Blocked . | . . . . . . Robot Schematics Acquired . | . . . . . . Robots Built . | . . . . . . Authchips . | . . . . . . Time . | . . . . . . Total Robot Build Rating . | . . . . . . Part Schematics Acquired . | . . . . . . Parts Built . | . . . . . . Authchips . | . . . . . . Time . | . . . . . . Total Part Build Rating . | . . . . . . Parts Repaired 2 | . . . . . 2 Time 35 | . . . . . 35 Parts Recycled . | . . . . . . Recycled Matter . | . . . . . . Retrieved Matter . | . . . . . . Retrieved Components . | . . . . . . Parts Scanalyzed . | . . . . . . Part Schematics Acquired . | . . . . . . Parts Damaged . | . . . . . . Bothacking | -11 -10 -9 -9 -8 -7 ------------ Run | Jun Mat Mat Min Mat Fac Used RIF Installer . | . . . . . . Robots Hacked . | . . . . . . Non-combat . | . . . . . . Combat . | . . . . . . Robot Hacks Applied . | . . . . . . Relay Couplers Released . | . . . . . . Fabnet Peak Effective % . | . . . . . . Robots Rewired . | . . . . . . Allies Hacked . | . . . . . . Hacks Repelled . | . . . . . . Allies | -11 -10 -9 -9 -8 -7 -------- Run | Jun Mat Mat Min Mat Fac Total Allies . | . . . . . . Largest Group . | . . . . . . Highest-Rated Group . | . . . . . . Highest-Rated Ally . | . . . . . . Total Orders . | . . . . . . Ally Attacks . | . . . . . . Total Damage . | . . . . . . Kills . | . . . . . . Allies Corrupted . | . . . . . . Allies Melted . | . . . . . . Intel | -11 -10 -9 -9 -8 -7 ------- Run | Jun Mat Mat Min Mat Fac Robot Analysis Total 1 | . . . . 1 . Derelict Logs Recovered . | . . . . . . Drone Launches . | . . . . . . Drone Recoveries . | . . . . . . Exploration | -11 -10 -9 -9 -8 -7 ------------- Run | Jun Mat Mat Min Mat Fac Turns Passed 3190 | 56 472 195 111 426 1930 Spaces Moved 2546 | 48 386 140 120 210 1642 Core 478 | 1 . . . . 477 Treads . | . . . . . . Legs 749 | . . . . 138 611 Wheels 1221 | 47 386 140 120 72 456 Hover 98 | . . . . . 98 Flight . | . . . . . . Fastest Speed 50 | 50 90 90 90 90 50 Average Speed 94 | 90 92 90 90 110 94 Slowest Speed 200 | 100 100 90 90 190 200 Overloaded Moves . | . . . . . . Propulsion Burnouts . | . . . . . . Robots Hopped . | . . . . . . Cave-ins Triggered . | . . . . . . Exploration Rate (%) 33 | 3 62 19 40 24 53 Regions Visited 5 Branch Regions 1 Pre-discovered Areas . | . . . . . . Known Exits Taken . | . . . . . . Unknown Exits Taken 5 | 1 1 1 1 1 . Scrap Searched 1 | . . . 1 . . Spaces Dug . | . . . . . . Terrain Destroyed 27 | . . . . . 27 Melee . | . . . . . . Projectile 11 | . . . . . 11 AOE 16 | . . . . . 16 Terrain Rammed . | . . . . . . Walls Destroyed . | . . . . . . Machines Disabled . | . . . . . . Actions | -11 -10 -9 -9 -8 -7 --------- Run | Jun Mat Mat Min Mat Fac Total 3078 | 57 445 184 122 337 1933 Wait 292 | . 18 28 . 73 173 Move 2541 | 47 385 139 119 209 1642 Hop . | . . . . . . Pick Up 29 | 4 7 2 1 2 13 Fast Attach 25 | 6 3 . . 3 13 Attach 18 | . 2 2 . 4 10 Detach 6 | . . . . . 6 Swap 27 | . 3 1 1 13 9 Drop 25 | . 1 . 1 5 18 Fire 111 | . 26 12 . 28 45 Melee . | . . . . . . Ram 2 | . . . . . 2 Kick 1 | . . . . . 1 Crush . | . . . . . . Escape Stasis . | . . . . . . Rewire 1 | . . . . . 1 Trap . | . . . . . . Miscellaneous . | . . . . . . Route ------- -11/Junkyard -10/Materials -9/Materials -9/Mines -8/Materials -7/Factory History --------- Turn | Location | Event 2 | -11/Junkyard | Met Revision 17 8 | -11/Junkyard | Discovered new exit (range 15) 57 | -11/Junkyard | Entered Materials 330 | -10/Materials | Build established: Mutant 355 | -10/Materials | Lost 3 parts (1p1n1u) 482 | -10/Materials | Discovered new exit (range 15) 529 | -10/Materials | Entered another Materials area 529 | -9/Materials | Evolved 2 slots: Utility x2 720 | -9/Materials | Discovered new exit (range 6) 724 | -9/Materials | Entered Mines 829 | -9/Mines | Discovered new exit (range 6) 835 | -9/Mines | Entered Materials 835 | -8/Materials | Evolved 2 slots: Propulsion x1, Weapon x1 1243 | -8/Materials | Discovered new exit (range 16) 1261 | -8/Materials | Entered Factory 1261 | -7/Factory | Evolved 2 slots: Utility x1, Weapon x1 1315 | -7/Factory | Repaired Cooling System 2294 | -7/Factory | Build established: Gunner 2546 | -7/Factory | Repaired Titanium Leg 2836 | -7/Factory | Cargo convoy interrupted 2871 | -7/Factory | Released all parts (4) 2898 | -7/Factory | Lost 9 parts (1p3n1u4w) 3117 | -7/Factory | Core integrity fell below 50% 3128 | -7/Factory | Build established: Mutant 3170 | -7/Factory | Core integrity fell below 20% 3191 | -7/Factory | Destroyed by S-27 Virus with Autogun Last Messages --------------- 03110_ W-25 Informer sends out distress signal. 03111_ K-01 Serf cleans the Subcomponent Replicator. 03112_ ALERT: Hostiles spotted, dispatching reinforcements to Terminal F001. 03115_ K-01 Serf cleans the Subcomponent Replicator. 03127_ System corrupted: Matter fused (-5). 03129_ Slammed into K-01 Serf. 03132_ Dropped Aluminum Leg. 03133_ Acquired Imp. Sensor Array. 03144_ System corrupted: Matter fused (-10). 03146_ K-01 Serf destroyed. 03146_ K-01 Serf collects debris. 03149_ P-60 Hacker resets K-01 Serf, system corruption cleaned. 03159_ System corrupted: Matter fused (-9). 03161_ Acquired 30 matter. 03165_ Imp. Airjet destroyed. 03176_ K-01 Serf cleans the Assembly Bed. 03184_ ALERT: Suspicious intruders detected, dispatching Cutter reinforcements to area. 03186_ Slammed into S-27 Virus. Map ----- +----------------------------------------------------+ | ??????????????????# ???????????# #?????# | | ??????????????????# ??????????# #?????#! | | ??????????????????# ########### ############+# | | ??????????????????# *% | | ??????????????????# ! | | ??????????????? + | | ??????????????????# | | ??????????????????# * | | ??????????????????# #### ########### #######+# | | ??????????????????# ???# #?????????# #??# | | ??????????????????# ####/###########/#### | | ??????????????????# # ## # | | ??????????????????# # ## # ] | | ??????????????????# # """""" ## # | | ??????????????????# # """""" ## # " | | ??????????????????# # """""" ## """ #= """ | | ??????????????????# # """""" ## """ / """ | | ??????????????????# # ## """ # | | ??????????????????# # """""" ## "" ###### | | ??????????????????# # """""" ## "" #????? | | ??????????????????# + """""" ## #????? | | ??????????????????# # """""" ## #????? | | ??????????????????# # % ##! #????? | | ??????????????????# s#################/###????? | | ??????????????????# s a ???????? | | ??????????????????# @ ???????? | | ??????????????????# ???????? | | ??????????????????# ???????? | | ??????????????????# ????????? | | ??????????????????# ###+#############????????? | | ??????????????????# #????????????????????????? | | ????????????????? #????????????????????????? | | ???????????????? ?????????????????????????? | | ??????????????? ?????????????????????????? | | ????????????? ?????????????????????????? | | ?????????????? ?????????????????H???????? | | ??????????????##########?????????????????????????? | | ?????????????????????????????????????????????????? | | ?????????????????????????????????????????????????? | | ?????????????????????????????????????????????????? | | ?????????????????????????????????????????????????? | | ?????????????????????????????????????????????????? | | ?????????????????????????????????????????????????? | | ?????????????????????????????????????????????????? | | ?????????????????????????????????????????????????? | | ?????????????????????????????????????????????????? | | ?????????????????????????????????????????????????? | | ?????????????????????????????????????????????????? | | ?????????????????????????????????????????????????? | | ?????????????????????????????????????????????????? | +----------------------------------------------------+ Best States ------------- Heat Dissipation 56 Energy Generation 16 Energy Capacity 290 Matter Stores 300 Matter Capacity 300 Sight Range 20 Robot Scan Range 15 Terrain Scan Density 85 Weapon Cycling 15 Evasion (%) 55 Defensive Hacking 10 Item Schematics ----------------- None Robot Schematics ------------------ None Fabricated ------------ Nothing Alien Tech Used ----------------- None Achievements -------------- I Spy Quantum Hacking Challenges ------------ None Game ------ Seed CargoKineticSlayer Manual? 0 Play Time 01:12:29 Cumulative 32.5 hours Start 2024.01.03 @ 16:41:19 End 2024.01.03 @ 17:55:03 Sessions 1 Manual Loads 0 Difficulty Rogue Special Mode None Game No. 90 Rogue 90 Adventurer 0 Explorer 0 Win Type - Total 0 Types 0/0/0/0/0/0/0/0/0 Lore% 18 Gallery% 27 Achievement% 17 Wizard Run 0 Options --------- ASCII 0 Keyboard 1 Movement Numpad Keybinds 0 Fullscreen 1 Font 16/Terminus Map View 76x50 Tactical HUD 1 Map Filters NONE Filters NONE Steam 1 RUN: f53db80b-30ff-485e-9838-5944ec4f79d0